bitfinex/quotes_SOLUSD_20251201
["timestamp","ask_amount","ask_price","bid_price","bid_amount"]
[1764608911063,75.7,124.44,124.41,9.27241257]
[1764608911265,75.7,124.44,124.41,8.61241257]
[1764608911465,9.31241257,124.43,124.39,8.61241257]
[1764608911700,16.308864,124.41,124.38,17.31229036]
[1764608911865,24.92127657,124.41,124.38,8.03987779]
[1764608912066,25.62127657,124.41,124.38,8.69987779]
[1764608912362,25.62127657,124.41,124.38,8.03987779]
[1764608912701,25.62127657,124.41,124.38,8.69987779]
[1764608913001,25.62127657,124.41,124.38,0.66]
[1764608913211,16.308864,124.41,124.39,0.69]
[1764608913607,9.32241257,124.43,124.39,17.34116022]
[1764608914683,16.308864,124.43,124.4,9.30241257]
[1764608915269,16.308864,124.43,124.41,8.03793907]
[1764608915897,0.71,124.47,124.42,9.30241257]
[1764608916098,84.51994492,124.49,124.44,8.61241257]
[1764608916283,8.61241257,124.48,124.44,8.61241257]
[1764608916486,0.71,124.48,124.45,8.61241257]
[1764608917474,9.32241257,124.48,124.44,8.61241257]
[1764608917706,9.32241257,124.48,124.44,17.33833883]
[1764608918782,0.71,124.47,124.44,9.30241257]
[1764608918978,9.32241257,124.48,124.44,9.30241257]
[1764608919174,9.32241257,124.48,124.44,17.33834452]
[1764608920303,0.71,124.48,124.45,17.33751752]
[1764608921400,0.71,124.48,124.45,8.03510495]
[1764608921401,9.32241257,124.48,124.45,8.03510495]
[1764608922085,0.71,124.48,124.45,8.72510495]
[1764608922700,0.71,124.48,124.45,24.18268566]
[1764608923292,25.248864,124.5,124.46,0.69]
[1764608923491,0.71,124.49,124.46,16.14758071]
[1764608923995,0.71,124.49,124.46,15.45758071]
[1764608924907,0.71,124.49,124.46,24.18203136]
[1764608925501,0.71,124.51,124.48,15.45758071]
[1764608925879,0.71,124.52,124.48,15.45758071]
[1764608926410,16.308864,124.51,124.48,16.14758071]
[1764608926595,16.308864,124.51,124.47,16.14758071]
[1764608926782,31.76644471,124.51,124.48,8.03341902]
[1764608927097,32.47644471,124.51,124.48,8.03341902]
[1764608928205,0.71,124.5,124.47,8.0339075]
[1764608929995,16.308864,124.49,124.48,0.69]
[1764608930323,16.308864,124.49,124.47,24.18148821]
[1764608930912,16.308864,124.49,124.46,32.43213999]
[1764608931120,16.308864,124.49,124.46,33.10213999]
[1764608931121,17.018864,124.49,124.46,33.10213999]
[1764608931498,32.47644471,124.49,124.46,16.95455928]
[1764608932011,17.018864,124.49,124.46,17.64455928]
[1764608932211,17.018864,124.49,124.46,33.10213999]
[1764608932402,16.308864,124.49,124.46,52.49891485]
[1764608932603,16.308864,124.49,124.47,16.14758071]
[1764608932907,75.0,124.53,124.48,15.45758071]
[1764608933109,60.21410257,124.56,124.51,15.45758071]
[1764608933110,16.16758071,124.55,124.51,15.45758071]
[1764608933311,16.16758071,124.55,124.51,16.14758071]
[1764608933484,0.71,124.55,124.51,16.14758071]
[1764608933689,17.018864,124.55,124.51,16.14758071]
[1764608934099,15.45758071,124.56,124.51,16.14758071]
[1764608934298,0.71,124.54,124.52,8.03083841]
[1764608934790,16.16758071,124.54,124.49,0.69]
[1764608934992,91.16758071,124.53,124.49,33.10003552]
[1764608935504,0.71,124.52,124.49,33.10003552]
[1764608936028,90.45758071,124.53,124.5,15.45758071]
[1764608936029,75.0,124.53,124.5,15.45758071]
[1764608936195,75.71,124.53,124.5,23.4894103]
[1764608936912,75.71,124.53,124.5,24.1794103]
[1764608937110,0.71,124.53,124.5,24.1794103]
[1764608937914,0.71,124.53,124.5,23.4894103]
[1764608938113,0.71,124.53,124.49,8.92]
[1764608938114,99.19777876,124.53,124.49,8.92]
[1764608938411,0.71,124.52,124.49,9.61]
[1764608938599,90.45758071,124.51,124.47,16.14758071]
[1764608938796,90.45758071,124.51,124.47,24.37758071]
[1764608938995,91.16758071,124.51,124.47,25.06758071]
[1764608940620,0.71,124.51,124.48,8.03341902]
[1764608940910,16.16758071,124.51,124.48,8.03341902]
[1764608941231,16.16758071,124.51,124.46,20.08564568]
[1764608941232,15.45758071,124.49,124.46,8.92]
[1764608941396,91.308864,124.52,124.46,8.92]
[1764608941397,17.018864,124.52,124.48,15.45758071]
[1764608941718,107.47644471,124.52,124.48,15.45758071]
[1764608941897,16.16758071,124.51,124.46,24.37758071]
[1764608942103,91.16758071,124.5,124.46,9.61]
[1764608942407,16.16758071,124.49,124.46,8.92]
[1764608942586,24.20039284,124.49,124.46,8.92]
[1764608942792,0.71,124.48,124.46,8.92]
[1764608943219,91.16758071,124.5,124.46,17.63442337]
[1764608943404,75.0,124.5,124.46,33.09200408]
[1764608943606,0.71,124.49,124.46,33.09200408]
[1764608943807,91.16758071,124.5,124.46,33.09200408]
[1764608944617,16.95202875,124.51,124.47,16.13758071]
[1764608944916,0.71,124.51,124.48,15.45758071]
[1764608945125,0.71,124.51,124.48,16.13758071]
[1764608945719,0.71,124.51,124.48,24.17072375]
[1764608946218,0.71,124.51,124.48,8.71314304]
[1764608946396,0.71,124.51,124.48,8.03314304]
[1764608946905,15.45758071,124.5,124.46,33.09176623]
[1764608947112,15.45758071,124.49,124.46,8.03418552]
[1764608947413,16.16758071,124.49,124.46,8.03418552]
[1764608947621,0.71,124.48,124.46,8.03418552]
[1764608947796,16.16758071,124.49,124.46,8.03418552]
[1764608948200,15.45758071,124.47,124.44,8.03538914]
[1764608948395,0.71,124.47,124.44,8.71538914]
[1764608948698,0.71,124.47,124.44,24.17296985]
[1764608949096,41.39644471,124.49,124.45,0.68]
[1764608949307,16.308864,124.49,124.45,25.05758071]
[1764608949704,17.018864,124.49,124.46,0.68]
[1764608950419,32.47644471,124.49,124.45,16.95473319]
[1764608950715,32.47644471,124.49,124.45,33.0923139]
[1764608950919,40.50957948,124.49,124.45,25.05758071]
[1764608951125,40.50928326,124.49,124.45,33.0928875]
[1764608951419,28.9998234,124.51,124.47,15.45758071]
[1764608951420,16.16758071,124.51,124.47,15.45758071]
[1764608951621,16.16758071,124.51,124.47,0.68]
[1764608951622,39.79827413,124.51,124.47,0.68]
[1764608951814,15.45758071,124.49,124.45,33.0928875]
[1764608952022,15.45758071,124.48,124.44,24.37758071]
[1764608952211,23.49110249,124.48,124.44,32.41353735]
[1764608952412,24.20110249,124.48,124.44,33.09353735]
[1764608952722,24.20110249,124.48,124.44,25.05758071]
[1764608952932,16.16758071,124.47,124.44,8.92]
[1764608953228,16.16758071,124.47,124.44,9.6]
[1764608953429,16.16758071,124.47,124.44,17.63593817]
[1764608954800,16.16758071,124.47,124.44,9.6]
[1764608955133,16.16758071,124.46,124.42,9.6]
[1764608955323,15.45758071,124.45,124.42,9.6]
[1764608955519,16.16758071,124.45,124.42,8.92]
[1764608955829,16.95433258,124.47,124.41,0.68]
[1764608955830,0.71,124.44,124.41,0.68]
[1764608956044,16.16758071,124.44,124.4,9.6]
[1764608956207,15.45758071,124.43,124.4,8.92]
[1764608956523,16.16758071,124.43,124.4,8.92]
[1764608956730,0.71,124.42,124.4,8.92]
[1764608957027,16.16758071,124.42,124.4,8.92]
[1764608957201,32.47644471,124.42,124.38,25.05758071]
[1764608957396,31.76644471,124.42,124.38,25.05758071]
[1764608957823,32.47644471,124.42,124.38,33.09742758]
[1764608958028,32.47644471,124.42,124.38,25.05758071]
[1764608958324,15.45758071,124.4,124.36,25.05758071]
[1764608958836,16.16758071,124.4,124.37,0.68]
[1764608959129,0.71,124.46,124.39,15.45758071]
[1764608959337,25.08758071,124.49,124.44,15.45758071]
[1764608959500,15.45758071,124.47,124.43,8.92]
[1764608959822,99.97752563,124.48,124.43,24.37758071]
[1764608960028,16.16758071,124.47,124.43,9.6]
[1764608960226,16.16758071,124.47,124.43,8.92]
[1764608960425,16.308864,124.45,124.41,33.09539167]
[1764608960603,16.308864,124.44,124.41,32.41539167]
[1764608960806,17.018864,124.44,124.41,16.95781096]
[1764608963005,17.018864,124.44,124.41,32.41539167]
[1764608963202,17.018864,124.44,124.41,33.09539167]
[1764608963406,103.89462319,124.48,124.43,15.45758071]
[1764608963407,91.16758071,124.48,124.43,15.45758071]
[1764608963632,16.308864,124.47,124.44,23.49358199]
[1764608964020,16.308864,124.47,124.44,24.17358199]
[1764608964217,0.71,124.48,124.44,33.09358199]
[1764608964408,17.018864,124.48,124.44,33.09358199]
[1764608964728,32.47644471,124.48,124.44,33.09358199]
[1764608965230,32.47644471,124.48,124.44,17.63600128]
[1764608965443,32.47644471,124.48,124.44,33.09358199]
[1764608967329,17.018864,124.48,124.45,0.68]
[1764608967732,100.08758071,124.5,124.46,0.68]
[1764608968029,0.71,124.49,124.46,0.68]
[1764608968214,16.16758071,124.49,124.46,0.68]
[1764608968809,16.16758071,124.49,124.44,52.5035852]
[1764608969012,15.45758071,124.46,124.43,16.95653387]
[1764608969247,15.45758071,124.45,124.43,8.92]
[1764608969461,15.45758071,124.44,124.41,8.72783822]
[1764608969627,15.45758071,124.45,124.41,24.18541893]
[1764608969940,16.16758071,124.45,124.41,24.18541893]
[1764608970240,16.16758071,124.45,124.41,16.14758071]
[1764608970931,16.16758071,124.45,124.42,0.69]
[1764608971109,16.16758071,124.44,124.37,0.69]
[1764608971310,15.45758071,124.4,124.35,8.04181745]
[1764608971507,15.45758071,124.39,124.36,0.69]
[1764608971748,15.45758071,124.38,124.35,16.96181745]
[1764608971924,16.16758071,124.38,124.35,8.92]
[1764608972239,16.16758071,124.38,124.35,9.61]
[1764608972546,15.45758071,124.37,124.35,8.92]
[1764608972727,16.16758071,124.38,124.35,8.92]
[1764608972913,15.45758071,124.38,124.35,9.61]
[1764608973245,15.45758071,124.38,124.35,17.65146926]
[1764608973550,100.888864,124.4,124.36,0.67]
[1764608973551,32.42644471,124.4,124.36,0.67]
[1764608973722,16.308864,124.4,124.37,15.45758071]
[1764608974041,9.6,124.43,124.38,24.39758071]
[1764608974339,15.45758071,124.42,124.38,24.39758071]
[1764608974526,15.45758071,124.42,124.39,0.67]
[1764608974920,32.42644471,124.42,124.39,0.67]
[1764608975728,31.76644471,124.42,124.39,0.67]
[1764608975933,32.42644471,124.42,124.39,0.67]
[1764608976335,32.42644471,124.42,124.38,8.94]
[1764608976536,32.42644471,124.42,124.38,9.61]
[1764608977042,32.42644471,124.42,124.39,0.67]
[1764608979152,15.45758071,124.41,124.38,9.61]
[1764608979648,16.11758071,124.41,124.38,9.61]
[1764608980529,23.49571178,124.41,124.38,8.94]
[1764608980750,16.11758071,124.4,124.37,8.04014879]
[1764608981263,15.45758071,124.39,124.37,8.71014879]
[1764608981762,16.11758071,124.39,124.37,8.04014879]
[1764608981985,16.308864,124.35,124.34,0.2]
[1764608982132,15.45758071,124.37,124.34,0.87]
[1764608982330,16.308864,124.36,124.34,0.87]
[1764608985950,24.9563069,124.36,124.34,0.2]
[1764608986252,9.3074429,124.35,124.34,0.2]
[1764608986550,8.6474429,124.35,124.34,0.2]
[1764608986752,9.3074429,124.35,124.34,0.2]
[1764608986954,25.6163069,124.35,124.34,0.2]
[1764608987130,33.65812435,124.35,124.34,0.2]
[1764608987831,35.24136684,124.35,124.34,0.2]
[1764608988050,35.24136684,124.35,124.3,0.2]
[1764608988051,8.04440511,124.31,124.3,0.2]
[1764608988262,16.69184801,124.31,124.3,0.2]
[1764608988461,17.35184801,124.31,124.3,0.2]
[1764608989872,26.3039545,124.31,124.3,0.2]
[1764608990380,101.3039545,124.31,124.3,0.2]
[1764608990754,100.92097049,124.31,124.3,0.03]
[1764608990954,16.308864,124.29,124.28,0.06]
[1764608991254,24.9563069,124.29,124.24,8.6474429]
[1764608991582,25.6163069,124.29,124.24,8.6474429]
[1764608991879,8.6474429,124.28,124.23,8.6474429]
[1764608992380,8.6474429,124.28,124.23,36.82099195]
[1764608992586,16.968864,124.29,124.23,36.82099195]
[1764608992878,8.6474429,124.27,124.23,8.04958544]
[1764608993376,8.6474429,124.24,124.22,5.34]
[1764608993672,8.6474429,124.23,124.22,0.2]
[1764608993875,8.6474429,124.24,124.22,0.2]
[1764608994063,8.6474429,124.23,124.22,0.2]
[1764608994255,8.6474429,124.24,124.22,0.2]
[1764608994456,24.9563069,124.26,124.22,8.92006776]
[1764608994673,25.6163069,124.26,124.22,8.92006776]
[1764608995076,16.308864,124.25,124.22,8.92006776]
[1764608995277,8.6474429,124.26,124.23,8.71956922]
[1764608995473,9.3074429,124.26,124.23,8.04956922]
[1764608995673,9.3074429,124.26,124.22,0.87]
[1764608995978,24.9563069,124.27,124.23,0.67]
[1764608996183,25.6163069,124.27,124.23,0.67]
[1764608996380,33.66337207,124.27,124.23,8.04958544]
[1764608996676,9.3074429,124.26,124.23,8.04958544]
[1764608997262,0.66,124.26,124.23,8.04958544]
[1764608997463,24.9563069,124.27,124.23,8.04958544]
[1764608997667,9.3074429,124.26,124.22,0.2]
[1764608997859,9.3074429,124.26,124.22,0.87]
[1764608998361,4.22424127,124.26,124.22,12.48442817]
[1764608999176,19.87310527,124.27,124.23,0.67]
[1764608999500,16.968864,124.27,124.24,8.04893754]
[1764609000371,0.66,124.26,124.24,8.04893754]
[1764609000576,16.968864,124.27,124.24,8.71893754]
[1764609000879,20.53310527,124.27,124.24,8.04893754]
[1764609001288,75.0,124.31,124.26,3.56424127]
[1764609001579,4.22424127,124.3,124.26,3.56424127]
[1764609001759,3.56424127,124.28,124.25,8.0477424]
[1764609002191,4.22424127,124.28,124.25,8.0477424]
[1764609003185,0.66,124.28,124.25,8.7577424]
[1764609003482,78.56424127,124.31,124.26,4.27424127]
[1764609003689,16.308864,124.3,124.26,4.27424127]
[1764609003986,17.028864,124.3,124.26,4.27424127]
[1764609004303,8.94,124.32,124.28,3.56424127]
[1764609004304,0.72,124.32,124.28,3.56424127]
[1764609004459,12.32632684,124.35,124.3,3.56424127]
[1764609004775,3.56424127,124.33,124.27,9.65]
[1764609004977,75.0,124.34,124.29,3.56424127]
[1764609004978,20.59310527,124.34,124.29,3.56424127]
[1764609005378,3.56424127,124.31,124.28,8.04634695]
[1764609005582,3.56424127,124.3,124.27,8.94]
[1764609005900,4.28424127,124.3,124.27,16.98698382]
[1764609006099,0.72,124.3,124.27,16.98698382]
[1764609006388,4.28424127,124.3,124.27,16.98698382]
[1764609006559,4.28424127,124.32,124.28,0.71]
[1764609006766,0.72,124.32,124.28,4.27424127]
[1764609007022,34.05880892,124.34,124.29,3.56424127]
[1764609007023,4.28424127,124.34,124.29,3.56424127]
[1764609007402,75.72,124.34,124.3,0.71]
[1764609007579,3.56424127,124.32,124.28,8.75634695]
[1764609007798,3.56424127,124.32,124.28,12.32058822]
[1764609008094,4.28424127,124.32,124.28,12.32058822]
[1764609008280,0.72,124.32,124.28,12.32058822]
[1764609008480,83.94,124.34,124.29,3.56424127]
[1764609008664,83.94,124.34,124.29,4.27424127]
[1764609008665,86.60734137,124.34,124.29,4.27424127]
[1764609008870,0.72,124.33,124.29,4.27424127]
[1764609009285,0.72,124.33,124.3,3.56424127]
[1764609009483,103.81310527,124.35,124.3,12.31902707]
[1764609009484,16.308864,124.32,124.3,12.31902707]
[1764609010398,16.308864,124.33,124.31,3.56424127]
[1764609010597,16.308864,124.33,124.31,4.27424127]
[1764609010895,4.28424127,124.35,124.32,0.71]
[1764609010896,16.308864,124.35,124.32,0.71]
[1764609011068,4.28424127,124.37,124.32,4.27424127]
[1764609011379,16.308864,124.35,124.31,4.27424127]
[1764609011577,16.308864,124.35,124.32,8.04375804]
[1764609011884,16.308864,124.35,124.27,37.81448055]
[1764609011885,16.308864,124.32,124.27,37.81448055]
[1764609012085,19.87310527,124.32,124.27,41.37872182]
[1764609012274,20.59310527,124.32,124.28,0.71]
[1764609012483,20.59310527,124.32,124.28,4.27424127]
[1764609013389,19.87310527,124.32,124.28,4.27424127]
[1764609013590,3.56424127,124.3,124.27,8.94]
[1764609013792,16.308864,124.28,124.27,8.94]
[1764609015208,17.028864,124.28,124.27,8.94]
[1764609015404,16.308864,124.28,124.27,8.94]
[1764609016994,17.028864,124.28,124.27,8.94]
[1764609017184,20.59310527,124.28,124.25,8.04813506]
[1764609017385,20.59310527,124.28,124.22,20.32483278]
[1764609017386,16.308864,124.26,124.22,20.32483278]
[1764609017692,16.308864,124.26,124.23,28.17324971]
[1764609017890,16.308864,124.26,124.23,32.44749098]
[1764609018397,16.308864,124.26,124.23,28.88324971]
[1764609018608,16.308864,124.26,124.23,8.7592861]
[1764609019902,8.66075302,124.25,124.22,9.14]
[1764609020107,8.66075302,124.24,124.22,9.14]
[1764609020401,16.308864,124.24,124.22,9.14]
[1764609020900,16.308864,124.24,124.22,9.85]
[1764609021105,16.308864,124.24,124.22,17.1900823]
[1764609021475,16.308864,124.24,124.22,17.9000823]
[1764609021979,16.308864,124.24,124.22,17.1900823]
[1764609024401,25.68961702,124.24,124.22,9.14]
[1764609025087,17.028864,124.24,124.22,9.14]
[1764609025284,16.308864,124.24,124.22,9.14]
[1764609025473,25.68961702,124.24,124.22,9.14]
[1764609025674,16.308864,124.24,124.22,9.14]
[1764609026180,17.028864,124.24,124.22,9.14]
[1764609026378,25.68961702,124.24,124.22,0.2]
[1764609026584,17.028864,124.24,124.22,0.2]
[1764609026810,16.308864,124.24,124.22,0.2]
[1764609027318,17.028864,124.24,124.22,0.2]
[1764609027913,0.72,124.23,124.22,0.2]
[1764609028104,25.68961702,124.24,124.22,0.2]
[1764609028499,0.72,124.23,124.22,0.2]
[1764609029294,9.38075302,124.23,124.22,0.2]
[1764609033517,8.66075302,124.25,124.22,8.96023345]
[1764609033693,16.308864,124.23,124.22,8.96023345]
[1764609034016,16.308864,124.23,124.22,0.2]
[1764609034193,25.64961702,124.23,124.22,0.2]
[1764609035403,33.69920246,124.23,124.22,0.2]
[1764609035802,42.65130895,124.23,124.22,0.2]
[1764609035998,83.95210649,124.22,124.21,0.2]
[1764609036302,83.95210649,124.19,124.18,0.2]
[1764609036502,109.60503762,124.19,124.18,0.2]
[1764609036705,110.28503762,124.19,124.18,0.2]
[1764609037210,102.23285951,124.19,124.18,0.2]
[1764609037798,83.05164448,124.2,124.18,0.2]
[1764609037799,83.66075302,124.2,124.18,0.2]
[1764609038005,9.34075302,124.2,124.18,0.2]
[1764609038406,16.308864,124.19,124.18,8.9627229]
[1764609038591,3.56707528,124.21,124.18,8.9627229]
[1764609038795,16.308864,124.19,124.18,8.9627229]
[1764609039020,16.308864,124.19,124.18,0.91]
[1764609039319,16.308864,124.19,124.18,0.2]
[1764609039525,20.55593928,124.19,124.18,0.2]
[1764609040019,19.87593928,124.19,124.18,0.2]
[1764609040518,16.308864,124.19,124.18,0.2]
[1764609040703,4.24707528,124.19,124.18,0.2]
[1764609040908,21.25135988,124.19,124.18,0.2]
[1764609042504,23.26175226,124.19,124.18,0.2]
[1764609042821,32.20175226,124.19,124.18,0.2]
[1764609043830,107.20175226,124.19,124.18,0.2]
[1764609046547,117.16598145,124.19,124.18,0.2]
[1764609048216,8.05153607,124.2,124.18,0.2]
[1764609048418,23.59323292,124.2,124.18,0.2]
[1764609048633,24.27323292,124.2,124.18,0.2]
[1764609049732,31.85056085,124.19,124.18,0.2]
[1764609050035,32.53056085,124.19,124.18,0.2]
[1764609051043,31.85056085,124.19,124.18,0.2]
[1764609053024,16.308864,124.19,124.18,0.2]
[1764609053229,16.308864,124.19,124.18,8.96282654]
[1764609053929,16.308864,124.19,124.18,8.25282654]
[1764609054532,15.54169685,124.2,124.18,8.96282654]
[1764609054935,15.54169685,124.2,124.18,0.2]
[1764609057137,16.22169685,124.2,124.18,0.2]
[1764609058040,16.22169685,124.19,124.18,0.2]
[1764609059144,24.27387496,124.19,124.18,0.2]
[1764609061548,17.68335658,124.21,124.18,0.2]
[1764609061729,16.22169685,124.21,124.18,0.91]
[1764609061930,16.308864,124.19,124.18,0.2]
[1764609062848,16.308864,124.19,124.18,0.91]
[1764609063046,32.56056085,124.19,124.18,0.2]
[1764609063662,16.308864,124.19,124.18,0.2]
[1764609064131,16.308864,124.19,124.18,0.88]
[1764609065038,16.308864,124.19,124.18,0.2]
[1764609065224,32.56056085,124.19,124.18,0.2]
[1764609068434,21.88426464,124.19,124.18,0.2]
[1764609068757,22.59426464,124.19,124.18,0.2]
[1764609070163,16.308864,124.19,124.18,0.88]
[1764609070333,16.308864,124.19,124.18,0.2]
[1764609073758,21.88426464,124.19,124.18,0.2]
[1764609074057,5.57540064,124.22,124.18,8.93282654]
[1764609074259,5.57540064,124.24,124.19,5.57540064]
[1764609074462,75.0,124.25,124.2,5.57540064]
[1764609074755,16.308864,124.22,124.2,6.25540064]
[1764609074964,14.38534556,124.25,124.21,0.68]
[1764609075136,15.09534556,124.25,124.21,0.68]
[1764609075459,89.51540064,124.26,124.21,6.25540064]
[1764609075757,89.51540064,124.26,124.23,8.04958544]
[1764609075758,14.51540064,124.26,124.23,8.04958544]
[1764609076061,21.88426464,124.24,124.21,0.68]
[1764609076248,21.88426464,124.24,124.19,16.992075]
[1764609076451,6.28540064,124.23,124.2,0.68]
[1764609076747,5.57540064,124.22,124.2,0.68]
[1764609076942,6.28540064,124.23,124.2,0.68]
[1764609077149,25.248864,124.24,124.2,0.68]
[1764609077347,30.82426464,124.24,124.2,0.68]
[1764609077564,30.82426464,124.24,124.2,6.25540064]
[1764609077565,21.88426464,124.24,124.2,6.25540064]
[1764609077740,21.88426464,124.24,124.21,8.05088157]
[1764609077937,21.88426464,124.24,124.21,0.68]
[1764609078663,16.308864,124.24,124.21,0.68]
[1764609079857,16.308864,124.24,124.21,8.73048578]
[1764609080441,16.308864,124.24,124.22,0.68]
[1764609081477,5.57540064,124.27,124.22,6.25540064]
[1764609081638,97.56236814,124.28,124.23,5.57540064]
[1764609081967,16.308864,124.27,124.24,8.72893754]
[1764609082350,5.57540064,124.27,124.24,8.72893754]
[1764609082755,21.88426464,124.27,124.24,8.72893754]
[1764609083165,16.308864,124.27,124.24,8.72893754]
[1764609083462,0.71,124.26,124.23,8.04958544]
[1764609083661,22.59426464,124.27,124.24,0.68]
[1764609083871,5.57540064,124.26,124.24,0.68]
[1764609084053,22.59426464,124.27,124.24,0.68]
[1764609084363,16.308864,124.27,124.24,6.25540064]
[1764609084753,16.308864,124.27,124.25,0.68]
[1764609085970,16.308864,124.27,124.25,8.72810983]
[1764609086975,22.59426464,124.27,124.24,8.04893754]
[1764609087177,22.59426464,124.27,124.24,8.72893754]
[1764609089670,5.57540064,124.26,124.24,8.72893754]
[1764609089977,5.57540064,124.25,124.23,8.04929824]
[1764609090270,6.28540064,124.25,124.23,8.04929824]
[1764609090654,5.57540064,124.25,124.23,8.04929824]
[1764609092251,6.28540064,124.25,124.22,8.76003066]
[1764609092762,0.71,124.25,124.22,8.76003066]
[1764609093083,6.28540064,124.25,124.22,8.76003066]
[1764609093461,9.65,124.26,124.22,14.2954313]
[1764609093663,24.35625882,124.27,124.22,13.6254313]
[1764609093880,16.308864,124.27,124.25,5.57540064]
[1764609094086,16.308864,124.27,124.26,8.04764204]
[1764609094370,6.28540064,124.3,124.26,14.29304268]
[1764609094566,6.28540064,124.3,124.26,8.71764204]
[1764609094768,16.308864,124.29,124.26,8.71764204]
[1764609095451,16.308864,124.29,124.26,8.04764204]
[1764609095647,80.57540064,124.32,124.28,5.57540064]
[1764609095853,16.308864,124.29,124.28,0.67]
[1764609096070,29.9299717,124.29,124.21,8.05088157]
[1764609096275,5.57540064,124.26,124.22,6.24540064]
[1764609096778,6.28540064,124.27,124.23,0.67]
[1764609097472,14.51540064,124.28,124.23,6.24540064]
[1764609097674,8.94,124.3,124.24,8.94]
[1764609097863,90.22540064,124.3,124.24,9.61]
[1764609098057,16.308864,124.29,124.25,14.29369037]
[1764609098253,16.308864,124.29,124.25,34.41441471]
[1764609098571,16.308864,124.29,124.26,0.67]
[1764609100056,16.308864,124.29,124.26,8.71715257]
[1764609100854,16.308864,124.28,124.26,8.71715257]
[1764609104077,16.308864,124.28,124.27,0.67]
[1764609104469,16.308864,124.28,124.27,8.71699444]
[1764609106779,16.308864,124.28,124.27,8.04699444]
[1764609107289,17.018864,124.28,124.26,8.04739218]
[1764609107477,16.308864,124.28,124.26,8.71739218]
[1764609108273,16.308864,124.28,124.26,8.04739218]
[1764609108474,16.308864,124.28,124.27,0.67]
[1764609109491,16.308864,124.28,124.27,8.71699444]
[1764609111485,16.308864,124.28,124.27,8.04699444]
[1764609111878,16.308864,124.28,124.27,8.71699444]
[1764609112189,16.308864,124.28,124.27,12.2787204]
[1764609112389,16.308864,124.31,124.27,32.39620651]
[1764609112590,16.308864,124.31,124.29,8.04569957]
[1764609112891,16.308864,124.3,124.29,8.04569957]
[1764609113279,16.308864,124.3,124.29,8.71569957]
[1764609113480,16.308864,124.31,124.29,8.71569957]
[1764609113985,16.308864,124.31,124.3,0.67]
[1764609114193,4.37172596,124.34,124.3,9.61]
[1764609114568,0.71,124.33,124.3,17.65460621]
[1764609114775,16.308864,124.33,124.3,37.09723694]
[1764609115086,16.308864,124.32,124.31,0.67]
[1764609116293,16.308864,124.32,124.3,37.09723694]
[1764609116478,16.308864,124.32,124.3,37.76723694]
[1764609116679,16.308864,124.32,124.3,17.65460621]
[1764609116876,16.308864,124.32,124.3,16.98460621]
[1764609117081,16.308864,124.32,124.3,17.65460621]
[1764609117289,16.308864,124.32,124.3,21.21633217]
[1764609117770,16.308864,124.32,124.3,17.65460621]
[1764609117975,16.308864,124.32,124.3,21.21633217]
[1764609118376,16.308864,124.32,124.3,17.65460621]
[1764609120266,16.308864,124.32,124.27,20.11748611]
[1764609120267,4.27172596,124.31,124.27,20.11748611]
[1764609120478,16.308864,124.3,124.27,20.78748611]
[1764609120773,16.308864,124.33,124.29,3.56172596]
[1764609121091,0.1,124.34,124.32,7.12345192]
[1764609121292,0.1,124.38,124.33,41.32261471]
[1764609121474,0.1,124.38,124.37,3.56172596]
[1764609121674,0.1,124.38,124.35,8.94]
[1764609121887,4.37172596,124.38,124.34,9.61]
[1764609122089,0.81,124.38,124.34,13.17172596]
[1764609122419,4.37172596,124.38,124.35,0.67]
[1764609122588,4.37172596,124.38,124.34,8.94]
[1764609122782,3.56172596,124.36,124.33,8.04311107]
[1764609123006,3.56172596,124.35,124.33,8.04311107]
[1764609123381,4.27172596,124.35,124.33,8.04311107]
[1764609123579,0.71,124.34,124.33,8.04311107]
[1764609124302,4.27172596,124.34,124.31,8.0441778]
[1764609124805,0.71,124.33,124.31,8.0441778]
[1764609125206,20.58058996,124.33,124.3,8.04505229]
[1764609125379,3.56172596,124.32,124.3,8.04505229]
[1764609125578,3.56172596,124.31,124.26,0.7]